[Event "Titled Tuesday Blitz August 17 2021"]
[White "Nazaretyan, Tigran"]
[Black "Torkkola, Henri"]
[WhiteFideId "24162345"]
[BlackFideId "507660"]
[WhiteElo "2167"]
[BlackElo "2137"]
[Result "1-0"]
[Round "04"]
[TimeControl "180+1"]
[Date "2021.08.18"]
[WhiteClock "0:00:37"]
[BlackClock "0:00:05"]

1. d4 {[%clk 0:02:57]}  Nf6 {[%clk 0:02:41]} 2. c4 {[%clk 0:02:56]}  e6 {[%clk 0:02:41]} 3. Nf3 {[%clk 0:02:55]}  b6 {[%clk 0:02:41]} 4. a3 {[%clk 0:02:55]}  Bb7 {[%clk 0:02:40]} 5. Nc3 {[%clk 0:02:55]}  d5 {[%clk 0:02:40]} 6. cxd5 {[%clk 0:02:54]}  Nxd5 {[%clk 0:02:40]} 7. e3 {[%clk 0:02:54]}  Be7 {[%clk 0:02:38]} 8. Bb5+ {[%clk 0:02:54]}  c6 {[%clk 0:02:38]} 9. Bd3 {[%clk 0:02:53]}  c5 {[%clk 0:02:37]} 10. Bb5+ {[%clk 0:02:52]}  Nd7 {[%clk 0:02:36]} 11. Ne5 {[%clk 0:02:52]}  Nf6 {[%clk 0:02:33]} 12. dxc5 {[%clk 0:02:30]}  Bxc5 {[%clk 0:02:32]} 13. Qa4 {[%clk 0:02:27]}  a6 {[%clk 0:02:26]} 14. Bc6 {[%clk 0:02:20]}  Bxc6 {[%clk 0:02:09]} 15. Qxc6 {[%clk 0:02:05]}  O-O {[%clk 0:02:04]} 16. Nxd7 {[%clk 0:02:03]}  Qxd7 {[%clk 0:02:03]} 17. Qxd7 {[%clk 0:02:02]}  Nxd7 {[%clk 0:02:04]} 18. b4 {[%clk 0:02:02]}  Be7 {[%clk 0:02:02]} 19. Bb2 {[%clk 0:02:02]}  Bf6 {[%clk 0:02:00]} 20. Ke2 {[%clk 0:01:59]}  Rac8 {[%clk 0:01:59]} 21. Rac1 {[%clk 0:01:58]}  b5 {[%clk 0:01:59]} 22. Ba1 {[%clk 0:01:43]}  Nb6 {[%clk 0:01:57]} 23. Ne4 {[%clk 0:01:39]}  Bxa1 {[%clk 0:01:54]} 24. Rxc8 {[%clk 0:01:36]}  Rxc8 {[%clk 0:01:54]} 25. Rxa1 {[%clk 0:01:37]}  Na4 {[%clk 0:01:46]} 26. Kd2 {[%clk 0:01:29]}  f5 {[%clk 0:01:43]} 27. Ng5 {[%clk 0:01:24]}  Rc6 {[%clk 0:01:43]} 28. Rc1 {[%clk 0:01:22]}  Rxc1 {[%clk 0:01:02]} 29. Kxc1 {[%clk 0:01:23]}  e5 {[%clk 0:01:03]} 30. Nf3 {[%clk 0:01:22]}  e4 {[%clk 0:01:03]} 31. Nd4 {[%clk 0:01:22]}  g6 {[%clk 0:01:03]} 32. Ne6 {[%clk 0:01:15]}  Nb6 {[%clk 0:00:57]} 33. Nc5 {[%clk 0:01:01]}  Nc4 {[%clk 0:00:57]} 34. Nxa6 {[%clk 0:01:01]}  Nxa3 {[%clk 0:00:57]} 35. Nc7 {[%clk 0:00:56]}  Kf7 {[%clk 0:00:55]} 36. Kb2 {[%clk 0:00:56]}  Nc4+ {[%clk 0:00:54]} 37. Kc3 {[%clk 0:00:56]}  Nd6 {[%clk 0:00:54]} 38. Kd4 {[%clk 0:00:56]}  Ke7 {[%clk 0:00:21]} 39. Kc5 {[%clk 0:00:56]}  g5 {[%clk 0:00:20]} 40. Nxb5 {[%clk 0:00:53]}  Nf7 {[%clk 0:00:19]} 41. Nd4 {[%clk 0:00:49]}  f4 {[%clk 0:00:17]} 42. b5 {[%clk 0:00:49]}  Ne5 {[%clk 0:00:14]} 43. Kd5 {[%clk 0:00:44]}  Nd3 {[%clk 0:00:13]} 44. b6 {[%clk 0:00:42]}  Kd7 {[%clk 0:00:12]} 45. Kxe4 {[%clk 0:00:40]}  Nxf2+ {[%clk 0:00:13]} 46. Kf3 {[%clk 0:00:40]}  fxe3 {[%clk 0:00:12]} 47. Kxe3 {[%clk 0:00:40]}  Ng4+ {[%clk 0:00:13]} 48. Ke4 {[%clk 0:00:40]}  Nxh2 {[%clk 0:00:13]} 49. Kd5 {[%clk 0:00:37]}  g4 {[%clk 0:00:12]} 50. Nb3 {[%clk 0:00:35]}  g3 {[%clk 0:00:08]} 51. Nc5+ {[%clk 0:00:36]}  Kc8 {[%clk 0:00:08]} 52. Kc6 {[%clk 0:00:36]}  Ng4 {[%clk 0:00:08]} 53. b7+ {[%clk 0:00:37]}  Kb8 {[%clk 0:00:05]} 54. Nd7+ {[%clk 0:00:37]} 1-0


[Site "https://www.chess.com"]

[Event "Titled Tuesday Blitz August 17 2021"]
[White "Obolentseva, Alexandra"]
[Black "Machidon, Cristi"]
[WhiteFideId "24153648"]
[BlackFideId "13904590"]
[WhiteElo "2113"]
[BlackElo "2312"]
[Result "1-0"]
[Round "04"]
[TimeControl "180+1"]
[Date "2021.08.18"]
[WhiteClock "0:00:04"]
[BlackClock "0:00:03"]

1. d4 {[%clk 0:03:00]}  Nf6 {[%clk 0:02:59]} 2. c4 {[%clk 0:03:00]}  e6 {[%clk 0:03:00]} 3. Nc3 {[%clk 0:03:00]}  Bb4 {[%clk 0:03:00]} 4. Qc2 {[%clk 0:02:57]}  O-O {[%clk 0:02:59]} 5. Nf3 {[%clk 0:02:56]}  d5 {[%clk 0:02:59]} 6. Bf4 {[%clk 0:02:54]}  dxc4 {[%clk 0:02:56]} 7. e3 {[%clk 0:02:52]}  b5 {[%clk 0:02:54]} 8. g3 {[%clk 0:02:51]}  Bb7 {[%clk 0:02:35]} 9. Bg2 {[%clk 0:02:51]}  Be4 {[%clk 0:02:35]} 10. Qc1 {[%clk 0:02:47]}  Bd3 {[%clk 0:02:32]} 11. Ne5 {[%clk 0:02:40]}  Nd5 {[%clk 0:02:32]} 12. Nxd3 {[%clk 0:02:36]}  cxd3 {[%clk 0:02:32]} 13. O-O {[%clk 0:02:34]}  g5 {[%clk 0:02:31]} 14. Nxd5 {[%clk 0:02:27]}  exd5 {[%clk 0:02:30]} 15. Bxc7 {[%clk 0:02:26]}  Qd7 {[%clk 0:02:23]} 16. Bxb8 {[%clk 0:02:01]}  Raxb8 {[%clk 0:02:24]} 17. Qd1 {[%clk 0:02:01]}  Qf5 {[%clk 0:02:16]} 18. a3 {[%clk 0:01:58]}  Be7 {[%clk 0:02:14]} 19. Qf3 {[%clk 0:01:58]}  Qxf3 {[%clk 0:01:48]} 20. Bxf3 {[%clk 0:01:57]}  Rfc8 {[%clk 0:01:47]} 21. Rfd1 {[%clk 0:01:46]}  Rc2 {[%clk 0:01:41]} 22. Rxd3 {[%clk 0:01:42]}  Rxb2 {[%clk 0:01:39]} 23. Bxd5 {[%clk 0:01:41]}  Rc8 {[%clk 0:01:34]} 24. Bb3 {[%clk 0:01:31]}  Kg7 {[%clk 0:01:09]} 25. e4 {[%clk 0:01:29]}  Rd8 {[%clk 0:00:39]} 26. Bd5 {[%clk 0:01:17]}  a5 {[%clk 0:00:32]} 27. Rc1 {[%clk 0:01:10]}  Rd7 {[%clk 0:00:22]} 28. Bc6 {[%clk 0:00:58]}  Rc7 {[%clk 0:00:22]} 29. d5 {[%clk 0:00:58]}  Bd6 {[%clk 0:00:20]} 30. Re3 {[%clk 0:00:53]}  f6 {[%clk 0:00:19]} 31. Rec3 {[%clk 0:00:40]}  g4 {[%clk 0:00:17]} 32. f3 {[%clk 0:00:32]}  h5 {[%clk 0:00:16]} 33. fxg4 {[%clk 0:00:32]}  hxg4 {[%clk 0:00:17]} 34. Rf1 {[%clk 0:00:31]}  a4 {[%clk 0:00:15]} 35. Rd3 {[%clk 0:00:26]}  Bc5+ {[%clk 0:00:14]} 36. Kh1 {[%clk 0:00:26]}  Bd6 {[%clk 0:00:14]} 37. Re3 {[%clk 0:00:24]}  Kg6 {[%clk 0:00:14]} 38. Be8+ {[%clk 0:00:21]}  Kg7 {[%clk 0:00:12]} 39. Bc6 {[%clk 0:00:21]}  Rc8 {[%clk 0:00:11]} 40. h4 {[%clk 0:00:16]}  gxh3 {[%clk 0:00:10]} 41. Ref3 {[%clk 0:00:16]}  Be5 {[%clk 0:00:08]} 42. g4 {[%clk 0:00:16]}  Kg6 {[%clk 0:00:08]} 43. Rxh3 {[%clk 0:00:15]}  Kg5 {[%clk 0:00:07]} 44. Rh7 {[%clk 0:00:11]}  Rb3 {[%clk 0:00:05]} 45. Bd7 {[%clk 0:00:10]}  Rc2 {[%clk 0:00:04]} 46. Be8 {[%clk 0:00:05]}  Rbb2 {[%clk 0:00:04]} 47. Rf5+ {[%clk 0:00:04]}  Kxg4 {[%clk 0:00:03]} 48. Rg7+ {[%clk 0:00:04]}  Kh4 {[%clk 0:00:03]} 49. Rh5# {[%clk 0:00:04]} 1-0


[Site "https://www.chess.com"]

[Event "Titled Tuesday Blitz August 17 2021"]
[White "Obregon, Andres Carlos"]
[Black "Zarubitski, Viachaslau"]
[WhiteFideId "111724"]
[BlackFideId "13509373"]
[WhiteElo "2572"]
[BlackElo "2315"]
[Result "1/2-1/2"]
[Round "04"]
[TimeControl "180+1"]
[Date "2021.08.17"]
[WhiteClock "0:00:21"]
[BlackClock "0:00:02"]

1. d4 {[%clk 0:03:00]}  d5 {[%clk 0:02:57]} 2. Nf3 {[%clk 0:03:01]}  Nf6 {[%clk 0:02:58]} 3. Bg5 {[%clk 0:03:01]}  Ne4 {[%clk 0:02:55]} 4. h4 {[%clk 0:03:01]}  c6 {[%clk 0:02:50]} 5. Nbd2 {[%clk 0:03:00]}  Bf5 {[%clk 0:02:51]} 6. Nxe4 {[%clk 0:02:56]}  dxe4 {[%clk 0:02:47]} 7. Ng1 {[%clk 0:02:56]}  Qb6 {[%clk 0:02:43]} 8. Rb1 {[%clk 0:02:29]}  e5 {[%clk 0:02:35]} 9. e3 {[%clk 0:02:20]}  Nd7 {[%clk 0:02:31]} 10. dxe5 {[%clk 0:02:18]}  Nxe5 {[%clk 0:02:26]} 11. Qd4 {[%clk 0:02:07]}  f6 {[%clk 0:01:56]} 12. Bf4 {[%clk 0:01:55]}  Bc5 {[%clk 0:01:51]} 13. Qa4 {[%clk 0:01:54]}  Rd8 {[%clk 0:01:40]} 14. Bxe5 {[%clk 0:01:44]}  fxe5 {[%clk 0:01:41]} 15. Qb3 {[%clk 0:01:30]}  Qa5+ {[%clk 0:01:14]} 16. c3 {[%clk 0:01:29]}  Rd7 {[%clk 0:00:52]} 17. Bc4 {[%clk 0:01:27]}  Ke7 {[%clk 0:00:47]} 18. Ne2 {[%clk 0:01:21]}  b5 {[%clk 0:00:43]} 19. Ng3 {[%clk 0:01:21]}  bxc4 {[%clk 0:00:42]} 20. Nxf5+ {[%clk 0:01:20]}  Kf6 {[%clk 0:00:40]} 21. Qxc4 {[%clk 0:01:16]}  Kxf5 {[%clk 0:00:40]} 22. g4+ {[%clk 0:01:16]}  Kf6 {[%clk 0:00:38]} 23. b4 {[%clk 0:01:14]}  Qb5 {[%clk 0:00:08]} 24. Qxb5 {[%clk 0:01:07]}  cxb5 {[%clk 0:00:09]} 25. bxc5 {[%clk 0:01:08]}  a6 {[%clk 0:00:09]} 26. Ke2 {[%clk 0:00:58]}  Rhd8 {[%clk 0:00:08]} 27. Rhd1 {[%clk 0:00:53]}  Rxd1 {[%clk 0:00:08]} 28. Rxd1 {[%clk 0:00:52]}  Rxd1 {[%clk 0:00:09]} 29. Kxd1 {[%clk 0:00:52]}  Ke6 {[%clk 0:00:10]} 30. Kc2 {[%clk 0:00:35]}  Kd5 {[%clk 0:00:10]} 31. Kb3 {[%clk 0:00:36]}  Kxc5 {[%clk 0:00:11]} 32. Kb2 {[%clk 0:00:33]}  Kc4 {[%clk 0:00:10]} 33. Kc2 {[%clk 0:00:33]}  a5 {[%clk 0:00:08]} 34. Kd2 {[%clk 0:00:33]}  b4 {[%clk 0:00:03]} 35. cxb4 {[%clk 0:00:33]}  Kxb4 {[%clk 0:00:03]} 36. Kc2 {[%clk 0:00:33]}  Kc4 {[%clk 0:00:03]} 37. Kd2 {[%clk 0:00:33]}  Kb4 {[%clk 0:00:03]} 38. Kc2 {[%clk 0:00:33]}  Ka3 {[%clk 0:00:04]} 39. Kb1 {[%clk 0:00:33]}  Ka4 {[%clk 0:00:04]} 40. Kc2 {[%clk 0:00:32]}  Kb4 {[%clk 0:00:04]} 41. Kb2 {[%clk 0:00:32]}  Kc4 {[%clk 0:00:05]} 42. Kc2 {[%clk 0:00:32]}  Kb4 {[%clk 0:00:04]} 43. Kb2 {[%clk 0:00:32]}  a4 {[%clk 0:00:02]} 44. a3+ {[%clk 0:00:32]}  Kc4 {[%clk 0:00:01]} 45. Kc2 {[%clk 0:00:32]}  Kd5 {[%clk 0:00:02]} 46. Kc3 {[%clk 0:00:31]}  Kc5 {[%clk 0:00:02]} 47. g5 {[%clk 0:00:31]}  g6 {[%clk 0:00:02]} 48. Kd2 {[%clk 0:00:30]}  Kc4 {[%clk 0:00:02]} 49. Kc2 {[%clk 0:00:31]}  Kd5 {[%clk 0:00:03]} 50. Kd2 {[%clk 0:00:28]}  Kc4 {[%clk 0:00:03]} 51. Kc2 {[%clk 0:00:28]}  Kb5 {[%clk 0:00:04]} 52. Kb2 {[%clk 0:00:26]}  Kc5 {[%clk 0:00:04]} 53. Kc3 {[%clk 0:00:25]}  Kb5 {[%clk 0:00:05]} 54. Kd2 {[%clk 0:00:25]}  Kc6 {[%clk 0:00:04]} 55. Kc2 {[%clk 0:00:22]}  Kd5 {[%clk 0:00:03]} 56. Kb2 {[%clk 0:00:21]}  Kc4 {[%clk 0:00:02]} 57. Kc2 {[%clk 0:00:21]} 1/2-1/2


[Site "https://www.chess.com"]

[Event "Titled Tuesday Blitz August 17 2021"]
[White "Oliveira, Silvio Eduardo"]
[Black "Tsaruk, Maksim"]
[WhiteFideId "2111560"]
[BlackFideId "13511173"]
[WhiteElo "2302"]
[BlackElo "2184"]
[Result "1-0"]
[Round "04"]
[TimeControl "180+1"]
[Date "2021.08.17"]
[WhiteClock "0:00:27"]
[BlackClock "0:00:03"]

1. e4 {[%clk 0:03:00]}  c5 {[%clk 0:02:58]} 2. Nf3 {[%clk 0:03:00]}  e6 {[%clk 0:02:56]} 3. d4 {[%clk 0:03:01]}  cxd4 {[%clk 0:02:56]} 4. Nxd4 {[%clk 0:03:01]}  Nf6 {[%clk 0:02:57]} 5. Nc3 {[%clk 0:03:01]}  Nc6 {[%clk 0:02:56]} 6. Nxc6 {[%clk 0:03:01]}  bxc6 {[%clk 0:02:56]} 7. e5 {[%clk 0:03:02]}  Nd5 {[%clk 0:02:51]} 8. Ne4 {[%clk 0:03:03]}  f5 {[%clk 0:02:44]} 9. exf6 {[%clk 0:03:02]}  Nxf6 {[%clk 0:02:44]} 10. Nd6+ {[%clk 0:03:02]}  Bxd6 {[%clk 0:02:45]} 11. Qxd6 {[%clk 0:03:03]}  Qe7 {[%clk 0:02:45]} 12. Bf4 {[%clk 0:02:57]}  Ne4 {[%clk 0:02:22]} 13. Qxe7+ {[%clk 0:02:09]}  Kxe7 {[%clk 0:02:22]} 14. f3 {[%clk 0:02:09]}  Nf6 {[%clk 0:02:21]} 15. c4 {[%clk 0:02:01]}  d5 {[%clk 0:02:22]} 16. O-O-O {[%clk 0:01:59]}  a5 {[%clk 0:02:11]} 17. c5 {[%clk 0:01:35]}  Ba6 {[%clk 0:02:04]} 18. Bd6+ {[%clk 0:01:35]}  Kd7 {[%clk 0:02:05]} 19. Bxa6 {[%clk 0:01:35]}  Rxa6 {[%clk 0:02:06]} 20. Rhe1 {[%clk 0:01:36]}  a4 {[%clk 0:01:58]} 21. Rd4 {[%clk 0:01:33]}  Rha8 {[%clk 0:01:34]} 22. Rb4 {[%clk 0:01:30]}  R8a7 {[%clk 0:01:25]} 23. Bb8 {[%clk 0:01:19]}  Ra8 {[%clk 0:01:21]} 24. Be5 {[%clk 0:01:18]}  R8a7 {[%clk 0:01:03]} 25. Kd2 {[%clk 0:01:17]}  Ra5 {[%clk 0:01:01]} 26. Bd4 {[%clk 0:01:12]}  Ne8 {[%clk 0:00:47]} 27. Rb8 {[%clk 0:01:05]}  g6 {[%clk 0:00:38]} 28. h4 {[%clk 0:00:56]}  Rb5 {[%clk 0:00:23]} 29. Rxb5 {[%clk 0:00:51]}  cxb5 {[%clk 0:00:24]} 30. h5 {[%clk 0:00:46]}  Rb7 {[%clk 0:00:12]} 31. Rh1 {[%clk 0:00:45]}  Kc6 {[%clk 0:00:06]} 32. hxg6 {[%clk 0:00:44]}  hxg6 {[%clk 0:00:07]} 33. Rh6 {[%clk 0:00:44]}  b4 {[%clk 0:00:06]} 34. Rxg6 {[%clk 0:00:43]}  Nc7 {[%clk 0:00:06]} 35. Kd3 {[%clk 0:00:38]}  b3 {[%clk 0:00:04]} 36. a3 {[%clk 0:00:38]}  Kb5 {[%clk 0:00:05]} 37. f4 {[%clk 0:00:34]}  Rb8 {[%clk 0:00:03]} 38. Be5 {[%clk 0:00:33]}  Rc8 {[%clk 0:00:03]} 39. Bxc7 {[%clk 0:00:32]}  Rxc7 {[%clk 0:00:04]} 40. Rxe6 {[%clk 0:00:33]}  Rxc5 {[%clk 0:00:04]} 41. f5 {[%clk 0:00:30]}  Rc2 {[%clk 0:00:04]} 42. Re2 {[%clk 0:00:31]}  Rc4 {[%clk 0:00:03]} 43. Rf2 {[%clk 0:00:27]}  Rg4 {[%clk 0:00:02]} 44. f6 {[%clk 0:00:27]}  Rg3+ {[%clk 0:00:02]} 45. Kd4 {[%clk 0:00:27]}  Rg8 {[%clk 0:00:02]} 46. f7 {[%clk 0:00:27]}  Rf8 {[%clk 0:00:03]} 47. Kxd5 {[%clk 0:00:27]} 1-0


[Site "https://www.chess.com"]

[Event "Titled Tuesday Blitz August 17 2021"]
[White "Potapova, Margarita"]
[Black "Nguyen Hong Nhung"]
[WhiteFideId "14126869"]
[BlackFideId "12412201"]
[WhiteElo "2214"]
[BlackElo "1661"]
[Result "1-0"]
[Round "04"]
[TimeControl "180+1"]
[Date "2021.08.18"]
[WhiteClock "0:00:09"]
[BlackClock "0:00:08"]

1. e4 {[%clk 0:02:58]}  c5 {[%clk 0:02:59]} 2. Nf3 {[%clk 0:02:55]}  e6 {[%clk 0:02:59]} 3. b3 {[%clk 0:02:49]}  d6 {[%clk 0:02:57]} 4. Bb2 {[%clk 0:02:49]}  e5 {[%clk 0:02:57]} 5. Bc4 {[%clk 0:02:44]}  Nc6 {[%clk 0:02:50]} 6. Nc3 {[%clk 0:02:44]}  g6 {[%clk 0:02:49]} 7. O-O {[%clk 0:02:44]}  Bg7 {[%clk 0:02:49]} 8. Nd5 {[%clk 0:02:45]}  Nge7 {[%clk 0:02:48]} 9. c3 {[%clk 0:02:42]}  O-O {[%clk 0:02:44]} 10. d4 {[%clk 0:02:41]}  cxd4 {[%clk 0:02:39]} 11. cxd4 {[%clk 0:02:40]}  Bg4 {[%clk 0:02:35]} 12. dxe5 {[%clk 0:02:31]}  Nxe5 {[%clk 0:02:32]} 13. Bxe5 {[%clk 0:02:10]}  Bxe5 {[%clk 0:02:04]} 14. Rc1 {[%clk 0:01:58]}  Nxd5 {[%clk 0:01:59]} 15. Bxd5 {[%clk 0:01:57]}  Rb8 {[%clk 0:01:31]} 16. h3 {[%clk 0:01:55]}  Bxf3 {[%clk 0:01:27]} 17. Qxf3 {[%clk 0:01:56]}  Qa5 {[%clk 0:01:25]} 18. Rc2 {[%clk 0:01:53]}  Kg7 {[%clk 0:01:11]} 19. Rfc1 {[%clk 0:01:50]}  Bf6 {[%clk 0:01:10]} 20. g3 {[%clk 0:01:12]}  Bg5 {[%clk 0:00:47]} 21. Rd1 {[%clk 0:01:08]}  Qb6 {[%clk 0:00:37]} 22. h4 {[%clk 0:01:06]}  Bf6 {[%clk 0:00:38]} 23. h5 {[%clk 0:01:06]}  Be5 {[%clk 0:00:31]} 24. Rdc1 {[%clk 0:01:04]}  Qd8 {[%clk 0:00:12]} 25. Rc7 {[%clk 0:00:55]}  Qf6 {[%clk 0:00:12]} 26. Qxf6+ {[%clk 0:00:46]}  Kxf6 {[%clk 0:00:13]} 27. Bxb7 {[%clk 0:00:45]}  gxh5 {[%clk 0:00:11]} 28. Bd5 {[%clk 0:00:44]}  h4 {[%clk 0:00:11]} 29. gxh4 {[%clk 0:00:39]}  Rg8+ {[%clk 0:00:11]} 30. Kf1 {[%clk 0:00:39]}  Rg7 {[%clk 0:00:11]} 31. Rxa7 {[%clk 0:00:36]}  Rbg8 {[%clk 0:00:11]} 32. Rcc7 {[%clk 0:00:34]}  Rf8 {[%clk 0:00:08]} 33. Ke2 {[%clk 0:00:32]}  Kg6 {[%clk 0:00:08]} 34. b4 {[%clk 0:00:27]}  Kh5 {[%clk 0:00:08]} 35. b5 {[%clk 0:00:27]}  Bd4 {[%clk 0:00:08]} 36. Rab7 {[%clk 0:00:14]}  Kxh4 {[%clk 0:00:07]} 37. a4 {[%clk 0:00:13]}  Rg2 {[%clk 0:00:08]} 38. Rxf7 {[%clk 0:00:12]}  Rxf2+ {[%clk 0:00:06]} 39. Rxf2 {[%clk 0:00:11]}  Rxf2+ {[%clk 0:00:07]} 40. Kd3 {[%clk 0:00:12]}  Bc5 {[%clk 0:00:08]} 41. Rxh7+ {[%clk 0:00:11]}  Kg5 {[%clk 0:00:08]} 42. Rg7+ {[%clk 0:00:11]}  Kh6 {[%clk 0:00:08]} 43. Rf7 {[%clk 0:00:10]}  Ra2 {[%clk 0:00:08]} 44. Bxa2 {[%clk 0:00:09]} 1-0


[Site "https://www.chess.com"]

[Event "Titled Tuesday Blitz August 17 2021"]
[White "Primbetov, Kazbek"]
[Black "Ozen, Bahadir"]
[WhiteFideId "13702297"]
[BlackFideId "6337058"]
[WhiteElo "2184"]
[BlackElo "2503"]
[Result "0-1"]
[Round "04"]
[TimeControl "180+1"]
[Date "2021.08.17"]
[WhiteClock "0:00:02"]
[BlackClock "0:00:02"]

1. d4 {[%clk 0:02:59]}  e6 {[%clk 0:02:59]} 2. Bf4 {[%clk 0:02:59]}  Nf6 {[%clk 0:02:58]} 3. e3 {[%clk 0:02:59]}  Be7 {[%clk 0:02:58]} 4. c3 {[%clk 0:02:56]}  c5 {[%clk 0:02:47]} 5. Nd2 {[%clk 0:02:55]}  b6 {[%clk 0:02:47]} 6. Bd3 {[%clk 0:02:52]}  Bb7 {[%clk 0:02:45]} 7. Ngf3 {[%clk 0:02:52]}  Nh5 {[%clk 0:02:43]} 8. Bg3 {[%clk 0:02:43]}  d6 {[%clk 0:02:38]} 9. Qe2 {[%clk 0:02:32]}  Nd7 {[%clk 0:02:33]} 10. O-O-O {[%clk 0:02:24]}  a6 {[%clk 0:02:28]} 11. Kb1 {[%clk 0:02:13]}  Qc7 {[%clk 0:02:26]} 12. e4 {[%clk 0:02:11]}  Nxg3 {[%clk 0:02:12]} 13. hxg3 {[%clk 0:02:10]}  b5 {[%clk 0:02:13]} 14. e5 {[%clk 0:02:03]}  d5 {[%clk 0:01:55]} 15. Bxh7 {[%clk 0:01:26]}  b4 {[%clk 0:01:20]} 16. Bc2 {[%clk 0:01:10]}  Rxh1 {[%clk 0:00:56]} 17. Rxh1 {[%clk 0:01:11]}  bxc3 {[%clk 0:00:57]} 18. bxc3 {[%clk 0:01:11]}  Rb8 {[%clk 0:00:57]} 19. Ka1 {[%clk 0:01:00]}  Qa5 {[%clk 0:00:57]} 20. Qe3 {[%clk 0:01:00]}  Bc6 {[%clk 0:00:54]} 21. Rb1 {[%clk 0:00:58]}  Rxb1+ {[%clk 0:00:53]} 22. Bxb1 {[%clk 0:00:55]}  Qa3 {[%clk 0:00:45]} 23. c4 {[%clk 0:00:17]}  Qa5 {[%clk 0:00:44]} 24. Nb3 {[%clk 0:00:12]}  Qb4 {[%clk 0:00:41]} 25. cxd5 {[%clk 0:00:10]}  Bxd5 {[%clk 0:00:40]} 26. dxc5 {[%clk 0:00:10]}  Nxc5 {[%clk 0:00:41]} 27. Nfd4 {[%clk 0:00:09]}  Qa3 {[%clk 0:00:24]} 28. f4 {[%clk 0:00:06]}  Nxb3+ {[%clk 0:00:23]} 29. Nxb3 {[%clk 0:00:06]}  g6 {[%clk 0:00:22]} 30. Qc3 {[%clk 0:00:06]}  Kf8 {[%clk 0:00:21]} 31. g4 {[%clk 0:00:06]}  Qa4 {[%clk 0:00:15]} 32. f5 {[%clk 0:00:06]}  gxf5 {[%clk 0:00:14]} 33. gxf5 {[%clk 0:00:06]}  Bxb3 {[%clk 0:00:04]} 34. Qxb3 {[%clk 0:00:05]}  Qd4+ {[%clk 0:00:05]} 35. Qb2 {[%clk 0:00:05]}  Bc5 {[%clk 0:00:03]} 36. a3 {[%clk 0:00:02]}  Qd1 {[%clk 0:00:03]} 37. Ka2 {[%clk 0:00:02]}  Bd4 {[%clk 0:00:03]} 38. Qb8+ {[%clk 0:00:02]}  Kg7 {[%clk 0:00:04]} 39. f6+ {[%clk 0:00:02]}  Kh6 {[%clk 0:00:04]} 40. Qh8+ {[%clk 0:00:03]}  Kg5 {[%clk 0:00:05]} 41. Qg7+ {[%clk 0:00:03]}  Kh4 {[%clk 0:00:05]} 42. g3+ {[%clk 0:00:02]}  Kh3 {[%clk 0:00:05]} 43. Qh6+ {[%clk 0:00:02]}  Kg2 {[%clk 0:00:04]} 44. Be4+ {[%clk 0:00:03]}  Kf2 {[%clk 0:00:02]} 45. Qh2+ {[%clk 0:00:02]}  Ke3 {[%clk 0:00:02]} 0-1


[Site "https://www.chess.com"]